fUST/lending_fUST_20250105
["ID","MTS","AMOUNT","RATE_DAILY","PERIOD"]
[347684660,1736059841820,-500.0,0.00019178,2]
[347684661,1736059841830,-502.28825239,0.00019178,2]
[347684662,1736059841840,-1022.77,0.00019178,2]
[347684663,1736059841850,-1295.072511,0.00019178,2]
[347684664,1736059841859,-1295.072511,0.00019178,2]
[347684665,1736059841868,-1295.072511,0.00019178,2]
[347684666,1736059841878,-1295.072511,0.00019178,2]
[347684667,1736059841887,-1295.072511,0.00019178,2]
[347684668,1736059841896,-1295.072511,0.00019178,2]
[347684669,1736059841906,-1295.072511,0.00019178,2]
[347684670,1736059841915,-1295.072511,0.00019178,2]
[347684671,1736059841924,-502.4290639,0.00019178,2]
[347684672,1736059841934,-1295.072511,0.00019178,2]
[347684673,1736059841945,-1295.072511,0.00019178,2]
[347684674,1736059841955,-1295.072511,0.00019178,2]
[347684675,1736059841964,-1295.072511,0.00019178,2]
[347684676,1736059841974,-1295.072511,0.00019178,2]
[347684677,1736059841983,-559.82,0.00019178,2]
[347684678,1736059841993,-1295.072511,0.00019178,2]
[347684679,1736059842003,-151.0,0.00019178,2]
[347684680,1736059842013,-1295.072511,0.00019178,2]
[347684681,1736059842021,-1295.072511,0.00019178,2]
[347684682,1736059842031,-1295.072511,0.00019178,2]
[347684683,1736059842041,-1295.072511,0.00019178,2]
[347684684,1736059842051,-1295.072511,0.00019178,2]
[347684685,1736059842061,-1295.072514,0.00019178,2]
[347684686,1736059842070,-151.0,0.00019178,2]
[347684687,1736059842079,-151.0,0.00019178,2]
[347684688,1736059842090,-277.725736,0.00019178,2]
[347684689,1736059842100,-648.69,0.00019178,2]
[347684690,1736059842109,-973.49,0.00019178,2]
[347684691,1736059842118,-670.91,0.00019178,2]
[347684692,1736059842127,-500.0,0.00019178,2]
[347684693,1736059842139,-500.0,0.00019178,2]
[347684694,1736059842151,-502.77031693,0.00019178,2]
[347684695,1736059842160,-500.0,0.00019178,2]
[347684696,1736059842170,-526.73,0.00019178,2]
[347684697,1736059842179,-500.0,0.00019178,2]
[347684698,1736059842188,-699.91,0.00019178,2]
[347684699,1736059842198,-500.0,0.00019178,2]
[347684700,1736059842208,-898.41,0.00019178,2]
[347684701,1736059842218,-579.36,0.00019178,2]
[347684702,1736059842227,-500.0,0.00019178,2]
[347684703,1736059842236,-232.99469976,0.00019178,2]
[347684704,1736059842245,-500.0,0.00019178,2]
[347684705,1736059842255,-659.9,0.00019178,2]
[347684706,1736059842264,-691.91,0.00019178,2]
[347684707,1736059842274,-500.0,0.00019178,2]
[347684708,1736059842283,-7545.23,0.00019178,2]
[347684709,1736059842294,-500.0,0.00019178,2]
[347684710,1736059842303,-500.0,0.00019178,2]
[347684711,1736059842312,-500.0,0.00019178,2]
[347684712,1736059842325,-500.0,0.00019178,2]
[347684713,1736059842335,-604.95,0.00019178,2]
[347684714,1736059842344,-500.0,0.00019178,2]
[347684715,1736059842354,-500.0,0.00019178,2]
[347684716,1736059842364,-500.0,0.00019178,2]
[347684717,1736059842373,-500.0,0.00019178,2]
[347684718,1736059842383,-500.0,0.00019178,2]
[347684719,1736059842393,-1000.0,0.00019178,2]
[347684720,1736059842404,-933.51,0.00019178,2]
[347684721,1736059842414,-719.52,0.00019178,2]
[347684722,1736059842424,-500.0,0.00019178,2]
[347684723,1736059842433,-500.0,0.00019178,2]
[347684724,1736059842443,-500.0,0.00019178,2]
[347684725,1736059842454,-500.0,0.00019178,2]
[347684726,1736059842463,-500.0,0.00019178,2]
[347684727,1736059842474,-683.67,0.00019178,2]
[347684728,1736059842483,-504.49492047,0.00019178,2]
[347684729,1736059842492,-1208.96,0.00019178,2]
[347684730,1736059842502,-500.0,0.00019178,2]
[347684731,1736059842513,-555.02,0.00019178,2]
[347684732,1736059842523,-500.0,0.00019178,2]
[347684733,1736059842532,-500.0,0.00019178,2]
[347684734,1736059842541,-500.0,0.00019178,2]
[347684735,1736059842552,-558.64,0.00019178,2]
[347684736,1736059842562,-500.0,0.00019178,2]
[347684737,1736059842571,-609.93,0.00019178,2]
[347684738,1736059842582,-500.0,0.00019178,2]
[347684739,1736059842592,-880.63,0.00019178,2]
[347684740,1736059842602,-500.0,0.00019178,2]
[347684741,1736059842611,-500.0,0.00019178,2]
[347684742,1736059842620,-987.77,0.00019178,2]
[347684743,1736059842631,-151.0,0.00019178,2]
[347684744,1736059842641,-151.0,0.00019178,2]
[347684745,1736059842653,-151.0,0.00019178,2]
[347684746,1736059842663,-500.0,0.00019178,2]
[347684747,1736059842673,-151.0,0.00019178,2]
[347684748,1736059842683,-151.0,0.00019178,2]
[347684749,1736059842694,-500.0,0.00019178,2]
[347684750,1736059842703,-151.0,0.00019178,2]
[347684751,1736059842712,-151.0,0.00019178,2]
[347684752,1736059842722,-151.0,0.00019178,2]
[347684753,1736059842732,-151.0,0.00019178,2]
[347684754,1736059842742,-151.0,0.00019178,2]
[347684755,1736059842751,-151.0,0.00019178,2]
[347684756,1736059842761,-232.020404,0.00019178,2]
[347684757,1736059842770,-500.0,0.00019178,2]
[347684758,1736059842780,-500.0,0.00019178,2]
[347684759,1736059842789,-185.749771,0.00019178,2]
[347684760,1736059842799,-185.749771,0.00019178,2]
[347684761,1736059842808,-185.749771,0.00019178,2]
[347684762,1736059842818,-185.749771,0.00019178,2]
[347684763,1736059842827,-185.749771,0.00019178,2]
[347684764,1736059842837,-185.749771,0.00019178,2]
[347684765,1736059842848,-185.749771,0.00019178,2]
[347684766,1736059842857,-185.749771,0.00019178,2]
[347684767,1736059842867,-185.749771,0.00019178,2]
[347684768,1736059842876,-576.63,0.00019178,2]
[347684769,1736059842887,-185.749771,0.00019178,2]
[347684770,1736059842899,-185.749771,0.00019178,2]
[347684771,1736059842908,-500.0,0.00019178,2]
[347684772,1736059842918,-185.749771,0.00019178,2]
[347684773,1736059842928,-185.749771,0.00019178,2]
[347684774,1736059842937,-185.749771,0.00019178,2]
[347684775,1736059842946,-185.749771,0.00019178,2]
[347684776,1736059842957,-185.749771,0.00019178,2]
[347684778,1736059842966,-185.749771,0.00019178,2]
[347684779,1736059842975,-185.749771,0.00019178,2]
[347684780,1736059842985,-185.749771,0.00019178,2]
[347684781,1736059842997,-185.749769,0.00019178,2]
[347684782,1736059843007,-500.0,0.00019178,2]
[347684783,1736059843016,-500.0,0.00019178,2]
[347684784,1736059843027,-500.0,0.00019178,2]
[347684785,1736059843036,-1295.47,0.00019178,2]
[347684786,1736059843046,-500.0,0.00019178,2]
[347684787,1736059843055,-500.0,0.00019178,2]
[347684788,1736059843065,-151.0,0.00019178,2]
[347684789,1736059843075,-151.0,0.00019178,2]
[347684790,1736059843087,-768.38,0.00019178,2]
[347684792,1736059843096,-3448.2,0.00019178,2]
[347684794,1736059843106,-151.0,0.00019178,2]
[347684795,1736059843115,-151.0,0.00019178,2]
[347684796,1736059843124,-151.0,0.00019178,2]
[347684797,1736059843135,-151.0,0.00019178,2]
[347684798,1736059843146,-500.0,0.00019178,2]
[347684799,1736059843155,-500.0,0.00019178,2]
[347684800,1736059843164,-500.0,0.00019178,2]
[347684801,1736059843173,-712.51,0.00019178,2]
[347684803,1736059843184,-500.0,0.00019178,2]
[347684804,1736059843193,-3912.64,0.00019178,2]
[347684805,1736059843203,-41010.73,0.00019178,2]
[347684806,1736059843212,-500.0,0.00019178,2]
[347684807,1736059843221,-500.0,0.00019178,2]
[347684808,1736059843231,-724.14,0.00019178,2]
[347684809,1736059843241,-724.14,0.00019178,2]
[347684810,1736059843250,-724.14,0.00019178,2]
[347684811,1736059843259,-724.14,0.00019178,2]
[347684812,1736059843269,-500.0,0.00019178,2]
[347684813,1736059843278,-724.14,0.00019178,2]
[347684814,1736059843287,-500.0,0.00019178,2]
[347684815,1736059843297,-724.14,0.00019178,2]
[347684816,1736059843306,-724.14,0.00019178,2]
[347684817,1736059843315,-500.0,0.00019178,2]
[347684818,1736059843324,-724.14,0.00019178,2]
[347684819,1736059843334,-500.0,0.00019178,2]
[347684821,1736059843344,-724.14,0.00019178,2]
[347684823,1736059843353,-1659.16,0.00019178,2]
[347684824,1736059843362,-724.14,0.00019178,2]
[347684825,1736059843371,-724.14,0.00019178,2]
[347684826,1736059843381,-724.14,0.00019178,2]
[347684827,1736059843390,-724.14,0.00019178,2]
[347684828,1736059843401,-724.14,0.00019178,2]
[347684829,1736059843411,-724.14,0.00019178,2]
[347684830,1736059843422,-779.54,0.00019178,2]
[347684831,1736059843432,-724.14,0.00019178,2]
[347684832,1736059843441,-724.14,0.00019178,2]
[347684833,1736059843449,-500.0,0.00019178,2]
[347684834,1736059843459,-724.14,0.00019178,2]
[347684835,1736059843472,-724.14,0.00019178,2]
[347684836,1736059843482,-724.14,0.00019178,2]
[347684837,1736059843491,-1225.24,0.00019178,2]
[347684838,1736059843500,-5075.97,0.00019178,2]
[347684839,1736059843511,-724.14,0.00019178,2]
[347684840,1736059843520,-724.14,0.00019178,2]
[347684842,1736059843530,-2226.32,0.00019178,2]
[347684844,1736059843539,-724.14,0.00019178,2]
[347684846,1736059843549,-254.140696,0.00019178,2]
[347684848,1736059843558,-254.140696,0.00019178,2]
[347684850,1736059843568,-193.67713691,0.00019178,2]
[347684873,1736059843867,-60.46355909,0.00019178,2]
[347684874,1736059843877,-724.27,0.00019178,2]
[347684875,1736059843886,-254.140696,0.00019178,2]
[347684876,1736059843895,-4.82574491,0.00019178,2]
[347684877,1736059843906,-249.31495109,0.00019178,2]
[347684878,1736059843915,-62.94834891,0.00019178,2]
[347684879,1736059844162,-310.8153786,0.00018986,2]
[347684880,1736059844171,-191.19234709,0.00019178,2]
[347684881,1736059844181,-489.53529491,0.00019178,2]
[347684882,1736059844191,-254.140696,0.00019178,2]
[347684883,1736059844200,-254.140696,0.00019178,2]
[347684884,1736059844212,-254.140696,0.00019178,2]
[347684885,1736059844221,-254.140696,0.00019178,2]
[347684886,1736059844231,-254.140696,0.00019178,2]
[347684887,1736059844242,-254.140696,0.00019178,2]
[347684888,1736059844252,-254.140696,0.00019178,2]
[347684889,1736059844263,-254.140696,0.00019178,2]
[347684890,1736059844274,-254.140696,0.00019178,2]
[347684891,1736059844284,-254.140696,0.00019178,2]
[347684892,1736059844294,-254.140696,0.00019178,2]
[347684893,1736059844303,-254.140696,0.00019178,2]
[347684894,1736059844312,-254.140696,0.00019178,2]
[347684895,1736059844323,-254.1407,0.00019178,2]
[347684896,1736059844333,-502.03655832,0.00019178,2]
[347684897,1736059844342,-1132.87699112,0.00019178,2]
[347684898,1736059844354,-1054.81300888,0.00019178,2]
[347684899,1736059844363,-500.0,0.00019178,2]
[347684900,1736059844372,-500.0,0.00019178,2]
[347684901,1736059844382,-508.55742945,0.00019178,2]
[347684902,1736059844392,-892.26,0.00019178,2]
[347684903,1736059844401,-500.0,0.00019178,2]
[347684904,1736059844411,-500.0,0.00019178,2]
[347684905,1736059844420,-500.0,0.00019178,2]
[347684906,1736059844429,-500.0,0.00019178,2]
[347684907,1736059844439,-986.16,0.00019178,2]
[347684908,1736059844448,-504.35095435,0.00019178,2]
[347684909,1736059844457,-962.44,0.00019178,2]
[347684910,1736059844468,-500.0,0.00019178,2]
[347684911,1736059844477,-150.05,0.00019178,2]
[347684912,1736059844486,-500.0,0.00019178,2]
[347684913,1736059844497,-151.0,0.00019178,2]
[347684914,1736059844507,-150.05,0.00019178,2]
[347684915,1736059844518,-151.0,0.00019178,2]
[347684916,1736059844527,-151.0,0.00019178,2]
[347684917,1736059844536,-1036.45,0.00019178,2]
[347684918,1736059844546,-506.45205941,0.00019178,2]
[347684919,1736059844555,-500.0,0.00019178,2]
[347684920,1736059844564,-150.05,0.00019178,2]
[347684921,1736059844573,-500.0,0.00019178,2]
[347684922,1736059844582,-2035.42,0.00019178,2]
[347684923,1736059844592,-502.80736074,0.00019178,2]
[347684924,1736059844601,-500.0,0.00019178,2]
[347684925,1736059844611,-193.39038715,0.00019178,2]
[347684926,1736059844621,-4784.48,0.00019178,2]
[347684927,1736059844630,-500.0,0.00019178,2]
[347684928,1736059844639,-1573.2,0.00019178,2]
[347684929,1736059844649,-637.9,0.00019178,2]
[347684930,1736059844659,-500.0,0.00019178,2]
[347684931,1736059844668,-531.42113687,0.00019178,2]
[347684932,1736059844678,-1240.83166937,0.00019178,2]
[347684933,1736059844690,-2198.67833063,0.00019178,2]
[347684934,1736059844700,-500.0,0.00019178,2]
[347684935,1736059844709,-511.8,0.00019178,2]
[347684936,1736059844719,-500.0,0.00019178,2]
[347684937,1736059844728,-504.85475037,0.00019178,2]
[347684938,1736059844738,-502.05990635,0.00019178,2]
[347684939,1736059844747,-2841.55,0.00019178,2]
[347684940,1736059844757,-500.0,0.00019178,2]
[347684941,1736059844766,-500.0,0.00019178,2]
[347684942,1736059844776,-500.0,0.00019178,2]
[347684943,1736059844785,-571.43,0.00019178,2]
[347684944,1736059844795,-500.0,0.00019178,2]
[347684945,1736059844804,-1290.64,0.00019178,2]
[347684946,1736059844813,-1495.3073114,0.00019178,2]
[347684975,1736059846614,-385.0,0.00019,2]
[347684977,1736059846624,-139.4626886,0.00019178,2]
[347684979,1736059846634,-1322.441194,0.00019178,2]
[347684980,1736059846644,-1322.441194,0.00019178,2]
[347684982,1736059846653,-1322.441194,0.00019178,2]
[347684984,1736059846662,-1322.441194,0.00019178,2]
[347684986,1736059846672,-1322.441194,0.00019178,2]
[347684988,1736059846681,-504.8410366,0.00019178,2]
[347684990,1736059846690,-1717.13,0.00019178,2]
[347684991,1736059846699,-1322.441194,0.00019178,2]
[347684993,1736059846708,-1322.441194,0.00019178,2]
[347684995,1736059846718,-1322.441194,0.00019178,2]
[347684996,1736059846725,-1322.441194,0.00019178,2]
[347684998,1736059846734,-1322.441194,0.00019178,2]
[347685000,1736059846744,-1322.441194,0.00019178,2]
[347685002,1736059846753,-1322.441194,0.00019178,2]
[347685004,1736059846763,-1322.441194,0.00019178,2]
[347685005,1736059846772,-719.20019931,0.00019178,2]
[347685006,1736059846784,-603.24099469,0.00019178,2]
[347685007,1736059846793,-500.0,0.00019178,2]
[347685009,1736059846802,-1322.441194,0.00019178,2]
[347685010,1736059846811,-150.05,0.00019178,2]
[347685011,1736059846821,-212.85031131,0.00019178,2]
[347685023,1736060141027,392.60492,0.00013973,2]
[347685152,1736061031939,-259.9098118,0.00017012,2]
[347685154,1736061031948,-276.0,0.00017458,2]
[347685156,1736061031958,-9713.9460619,0.00017648,2]
[347685158,1736061031968,-166.096572,0.00017703,2]
[347685160,1736061031977,-180.21521658,0.00017909,2]
[347685162,1736061031986,-3685.1522983,0.00018109,2]
[347685164,1736061031995,-429.025,0.0001822,2]
[347685166,1736061032004,-1778.91293225,0.000189,2]
[347685168,1736061032013,-240.6535708,0.00018986,2]
[347685170,1736061032023,-1778.91293222,0.00019038,2]
[347685172,1736061032032,-5437.58903725,0.00019044,2]
[347685174,1736061032042,-810.90767972,0.00019075,2]
[347685176,1736061032052,-428.43116702,0.00019075,2]
[347685178,1736061032061,-174.16981734,0.00019076,2]
[347685180,1736061032070,-697.97,0.000191,2]
[347685182,1736061032078,-411.0,0.0001917,2]
[347685184,1736061032088,-500.0,0.00019173,2]
[347685185,1736061032096,-500.0,0.00019173,2]
[347685187,1736061032106,-500.0,0.00019173,2]
[347685189,1736061032115,-1778.91293222,0.00019176,2]
[347685191,1736061032124,-200.09656262,0.00019177,2]
[347685193,1736061032135,-204.639,0.00019177,2]
[347685195,1736061032144,-497.04189993,0.00019177,2]
[347685197,1736061032154,-194.62021128,0.00019177,2]
[347685199,1736061032163,-825.82092571,0.00019178,2]
[347685201,1736061032173,-30972.43649188,0.00019178,2]
[347685204,1736061032185,-203.90885326,0.00019178,2]
[347685206,1736061032195,-500.73019856,0.00019178,2]
[347685208,1736061032205,-500.0,0.00019178,2]
[347685209,1736061032215,-538.79475046,0.00019178,2]
[347685211,1736061032224,-321.07179132,0.00019178,2]
[347685212,1736061032235,-249.63820868,0.00019178,2]
[347685213,1736061032245,-151.0,0.00019178,2]
[347685214,1736061032255,-151.0,0.00019178,2]
[347685215,1736061032264,-151.0,0.00019178,2]
[347685216,1736061032274,-151.0,0.00019178,2]
[347685217,1736061032283,-151.0,0.00019178,2]
[347685218,1736061032293,-151.0,0.00019178,2]
[347685219,1736061032302,-151.0,0.00019178,2]
[347685220,1736061032311,-151.0,0.00019178,2]
[347685221,1736061032321,-151.0,0.00019178,2]
[347685222,1736061032330,-151.0,0.00019178,2]
[347685223,1736061032340,-109.57372563,0.00019178,2]
[347685224,1736061032352,-41.42627437,0.00019178,2]
[347685225,1736061032361,-151.0,0.00019178,2]
[347685226,1736061032370,-151.0,0.00019178,2]
[347685227,1736061032379,-151.0,0.00019178,2]
[347685228,1736061032389,-139.48080362,0.00019178,2]
[347685229,1736061032407,-11.51919638,0.00019178,2]
[347685230,1736061032416,-279.821258,0.00019178,2]
[347685231,1736061032426,-191.37954562,0.00019178,2]
[347685232,1736061032441,-308.62045438,0.00019178,2]
[347685233,1736061032450,-151.0,0.00019178,2]
[347685235,1736061032459,-151.0,0.00019178,2]
[347685237,1736061032469,-500.0,0.00019178,2]
[347685239,1736061032478,-151.0,0.00019178,2]
[347685241,1736061032487,-151.0,0.00019178,2]
[347685242,1736061032497,-153.9289499,0.00019178,2]
[347685245,1736061032509,-346.0710501,0.00019178,2]
[347685247,1736061032518,-500.0,0.00019178,2]
[347685249,1736061032528,-500.0,0.00019178,2]
[347685251,1736061032537,-500.0,0.00019178,2]
[347685253,1736061032547,-922.33,0.00019178,2]
[347685255,1736061032556,-151.0,0.00019178,2]
[347685257,1736061032565,-151.0,0.00019178,2]
[347685259,1736061032574,-414.22153006,0.00019178,2]
[347685763,1736061037711,-302.96970909,0.00019077,2]
[347685764,1736061037720,-500.0,0.00019174,2]
[347685765,1736061037730,-602.33546094,0.00019174,2]
[347685766,1736061037739,-500.0,0.00019174,2]
[347685767,1736061037748,-735.74335294,0.00019174,2]
[347685768,1736061037757,-500.0,0.00019174,2]
[347685769,1736061037767,-735.74335294,0.00019174,2]
[347685770,1736061037776,-80.05730646,0.00019174,2]
[347685771,1736061037788,-366.53994736,0.00019174,2]
[347685772,1736061037797,-500.0,0.00019174,2]
[347685773,1736061037806,-735.74335294,0.00019174,2]
[347685774,1736061037814,-500.0,0.00019174,2]
[347685775,1736061037823,-735.74335294,0.00019174,2]
[347685776,1736061037832,-735.74335294,0.00019174,2]
[347685777,1736061037841,-500.0,0.00019174,2]
[347685779,1736061037851,-735.74335294,0.00019174,2]
[347685780,1736061037859,-735.74335294,0.00019174,2]
[347685781,1736061037869,-416.34651019,0.00019174,2]
[347685782,1736061037878,-735.74335294,0.00019174,2]
[347685783,1736061037887,-735.74335294,0.00019174,2]
[347685784,1736061037898,-735.74335294,0.00019174,2]
[347685785,1736061037907,-735.74335294,0.00019174,2]
[347685786,1736061037916,-735.74335294,0.00019174,2]
[347685787,1736061037926,-735.74335294,0.00019174,2]
[347685788,1736061037936,-735.74335294,0.00019174,2]
[347685789,1736061037946,-735.74335294,0.00019174,2]
[347685790,1736061037955,-735.74335294,0.00019174,2]
[347685791,1736061037964,-735.74335294,0.00019174,2]
[347685792,1736061037974,-735.74335294,0.00019174,2]
[347685793,1736061037984,-735.74335294,0.00019174,2]
[347685794,1736061037994,-735.74335294,0.00019174,2]
[347685795,1736061038003,-735.74335294,0.00019174,2]
[347685796,1736061038013,-735.74335294,0.00019174,2]
[347685797,1736061038023,-735.74335294,0.00019174,2]
[347685798,1736061038032,-735.74335294,0.00019174,2]
[347685799,1736061038041,-20.34034354,0.00019174,2]
[347685800,1736061038053,-715.4030094,0.00019174,2]
[347685801,1736061038062,-735.74335294,0.00019174,2]
[347685802,1736061038072,-735.74335294,0.00019174,2]
[347685803,1736061038082,-735.74335294,0.00019174,2]
[347685804,1736061038091,-735.74335294,0.00019174,2]
[347685805,1736061038100,-735.74335294,0.00019174,2]
[347685806,1736061038110,-735.74335294,0.00019174,2]
[347685807,1736061038119,-735.74335294,0.00019174,2]
[347685808,1736061038128,-735.74335294,0.00019174,2]
[347685809,1736061038138,-735.74335294,0.00019174,2]
[347685810,1736061038146,-735.74335294,0.00019174,2]
[347685811,1736061038155,-735.74335294,0.00019174,2]
[347685812,1736061038165,-735.74335294,0.00019174,2]
[347685813,1736061038174,-735.74335294,0.00019174,2]
[347685814,1736061038183,-735.74335294,0.00019174,2]
[347685815,1736061038193,-735.74335294,0.00019174,2]
[347685816,1736061038205,-735.74335294,0.00019174,2]
[347685817,1736061038214,-735.74335294,0.00019174,2]
[347685818,1736061038224,-735.74335294,0.00019174,2]
[347685819,1736061038234,-735.74335294,0.00019174,2]
[347685820,1736061038244,-735.74335294,0.00019174,2]
[347685821,1736061038253,-735.74335294,0.00019174,2]
[347685822,1736061038263,-735.74335294,0.00019174,2]
[347685823,1736061038273,-735.74335294,0.00019174,2]
[347685824,1736061038282,-735.74335294,0.00019174,2]
[347685825,1736061038292,-735.74335294,0.00019174,2]
[347685826,1736061038302,-735.74335294,0.00019174,2]
[347685827,1736061038311,-735.74335294,0.00019174,2]
[347685828,1736061038320,-735.74335294,0.00019174,2]
[347685829,1736061038329,-735.74335294,0.00019174,2]
[347685830,1736061038338,-735.74335294,0.00019174,2]
[347685831,1736061038347,-735.74335294,0.00019174,2]
[347685832,1736061038356,-735.74335294,0.00019174,2]
[347685833,1736061038365,-85.77846994,0.00019178,2]
[347685834,1736061038374,-500.0,0.00019178,2]
[347685835,1736061038384,-500.0,0.00019178,2]
[347685836,1736061038393,-500.71852056,0.00019178,2]
[347685837,1736061038402,-500.0,0.00019178,2]
[347685838,1736061038411,-946.61,0.00019178,2]
[347685839,1736061038420,-535.67576959,0.00019178,2]
[347685840,1736061038429,-653.24,0.00019178,2]
[347685841,1736061038439,-500.0,0.00019178,2]
[347685842,1736061038448,-1353.91,0.00019178,2]
[347685843,1736061038457,-500.0,0.00019178,2]
[347685844,1736061038466,-151.0,0.00019178,2]
[347685845,1736061038475,-151.0,0.00019178,2]
[347685846,1736061038485,-151.0,0.00019178,2]
[347685847,1736061038494,-151.0,0.00019178,2]
[347685848,1736061038503,-151.0,0.00019178,2]
[347685849,1736061038513,-151.0,0.00019178,2]
[347685850,1736061038522,-613.83,0.00019178,2]
[347685851,1736061038532,-151.0,0.00019178,2]
[347685852,1736061038541,-151.0,0.00019178,2]
[347685853,1736061038550,-229.628176,0.00019178,2]
[347685854,1736061038560,-707.84,0.00019178,2]
[347685855,1736061038569,-500.0,0.00019178,2]
[347685856,1736061038578,-500.0,0.00019178,2]
[347685857,1736061038588,-500.0,0.00019178,2]
[347685858,1736061038597,-500.0,0.00019178,2]
[347685859,1736061038606,-502.05683743,0.00019178,2]
[347685860,1736061038615,-500.0,0.00019178,2]
[347685861,1736061038624,-361.85134488,0.00019178,2]
[347685889,1736061039864,-139.00640636,0.00019178,2]
[347685891,1736061039873,-595.36147947,0.00019178,2]
[347685893,1736061039883,-412.66426868,0.00019178,2]
[347685894,1736061039891,-455.34811498,0.00019178,2]
[347685895,1736061039901,-321.84887538,0.00019178,2]
[347685896,1736061039990,-178.15112462,0.00019178,2]
[347685897,1736061039999,-440.56563433,0.00019178,2]
[347685915,1736061042855,-348.89256572,0.00018982,2]
[347685916,1736061042867,-68.29895846,0.00018982,2]
[347685917,1736061042877,-266.25436567,0.00019178,2]
[347685918,1736061042886,-500.0,0.00019178,2]
[347685919,1736061042896,-151.0,0.00019178,2]
[347685920,1736061042905,-151.0,0.00019178,2]
[347685921,1736061042914,-500.0,0.00019178,2]
[347685922,1736061042922,-500.0,0.00019178,2]
[347685923,1736061042931,-500.0,0.00019178,2]
[347685924,1736061042940,-535.36,0.00019178,2]
[347685925,1736061042950,-4681.36,0.00019178,2]
[347685926,1736061042959,-500.0,0.00019178,2]
[347685927,1736061042968,-504.17226291,0.00019178,2]
[347685928,1736061042977,-562.06,0.00019178,2]
[347685929,1736061042986,-536.49,0.00019178,2]
[347685930,1736061042995,-1088.07,0.00019178,2]
[347685931,1736061043004,-500.0,0.00019178,2]
[347685932,1736061043013,-794.18,0.00019178,2]
[347685933,1736061043022,-500.0,0.00019178,2]
[347685934,1736061043031,-500.0,0.00019178,2]
[347685935,1736061043040,-1004.24,0.00019178,2]
[347685936,1736061043049,-621.66,0.00019178,2]
[347685937,1736061043059,-500.0,0.00019178,2]
[347685938,1736061043068,-957.21,0.00019178,2]
[347685939,1736061043077,-500.93605381,0.00019178,2]
[347685940,1736061043086,-663.79,0.00019178,2]
[347685941,1736061043096,-553.7,0.00019178,2]
[347685942,1736061043105,-504.78,0.00019178,2]
[347685943,1736061043115,-500.0,0.00019178,2]
[347685944,1736061043124,-501.98480295,0.00019178,2]
[347685945,1736061043133,-3383.17,0.00019178,2]
[347685946,1736061043143,-860.97,0.00019178,2]
[347685947,1736061043152,-670.74,0.00019178,2]
[347685948,1736061043161,-500.0,0.00019178,2]
[347685949,1736061043171,-663.08,0.00019178,2]
[347685950,1736061043181,-500.0,0.00019178,2]
[347685951,1736061043191,-500.0,0.00019178,2]
[347685952,1736061043204,-504.94167148,0.00019178,2]
[347685953,1736061043213,-579.75,0.00019178,2]
[347685954,1736061043222,-500.0,0.00019178,2]
[347685955,1736061043231,-292.36703202,0.00019178,2]
[347685956,1736061043241,-500.0,0.00019178,2]
[347685957,1736061043250,-993.26,0.00019178,2]
[347685958,1736061043259,-503.23805028,0.00019178,2]
[347685959,1736061043269,-330.610299,0.00019178,2]
[347685960,1736061043278,-330.610299,0.00019178,2]
[347685961,1736061043288,-330.610299,0.00019178,2]
[347685962,1736061043298,-500.0,0.00019178,2]
[347685963,1736061043307,-330.610299,0.00019178,2]
[347685964,1736061043316,-500.0,0.00019178,2]
[347685965,1736061043326,-500.0,0.00019178,2]